Workbook

Sheet Start
B3: COMPANY VALUATION REPORT
B7: Use the tool to produce a company valuation for the client.
B20: © 2020 Innovation Training Limited
B22: Version 4.01 | C22: 2023-01-28

Sheet Data
K1: COMPANY VALUATION REPORT
B6: Business Name | G6: Sample Company Limited | K6: 0
B10: Shareholders name | G10: Total Shareholding
G11: 0 | AC11: 1 | AD11: =loanborrowed ->  | AE11: =+AD11*intrateonloan/1200 ->  | AF11: =+AD11+AE11 ->  | AG11: =-loanmonthly ->  | AH11: =+AF11+AG11 -> 
B12: Number of Shares held | G12: 40000 | K12: 0 | P12: 40 | AC12: 4 | AD12: =+AH15 ->  | AE12: =+AD12*intrateonloan/1200 ->  | AF12: =+AD12+AE12 ->  | AG12: =-loanmonthly ->  | AH12: =+AF12+AG12 -> 
B14: Last audited accounts date | G14: 2022-12-31 | K14: 0 | P14: 40 | AC14: 4 | AD14: =+AH11 ->  | AE14: =+AD14*intrateonloan/1200 ->  | AF14: =+AD14+AE14 ->  | AG14: =-loanmonthly ->  | AH14: =+AF14+AG14 -> 
G15: 0 | J15: 0 | P15: 23 | AC15: 3 | AD15: =+#REF! ->  | AE15: =+AD15*intrateonloan/1200 ->  | AF15: =+AD15+AE15 ->  | AG15: =-loanmonthly ->  | AH15: =+AF15+AG15 -> 
B16: Deferred tax not provided for | G16: 33187
AC17: 5 | AD17: =+AH12 ->  | AE17: =+AD17*intrateonloan/1200 ->  | AF17: =+AD17+AE17 ->  | AG17: =-loanmonthly ->  | AH17: =+AF17+AG17 -> 
K18: 0
K19: 0
B20: Percentage of dividend distribution | G20: 0.3 | K20: 0
B23: Pre-tax Profit | E23: =(TEXT((G$14-731),"dd mmmm yyy")) -> 30 December 2020 | G23: 39894
E24: =(TEXT((G$14-366),"dd mmmm yyy")) -> 30 December 2021 | G24: 57265
E25: =(TEXT(G$14,"dd mmmm yyy")) -> 31 December 2022 | G25: 73004
B27: Net Asset Value | E27: =(TEXT((G$14-731),"dd mmmm yyy")) -> 30 December 2020 | G27: 83944
E28: =(TEXT((G$14-366),"dd mmmm yyy")) -> 30 December 2021 | G28: 121209
E29: =(TEXT(G$14,"dd mmmm yyy")) -> 31 December 2022 | G29: 158447
K31: 0
K32: 0
K33: 0
K34: 0
K35: 0
K36: 0
K37: 0
K38: 0
K39: 0
K40: 0
K41: 0
K42: 0
K43: 0
K44: 0
K45: 0
K46: 0
K47: 0
K49: 0
K50: 0
K51: 0
K52: 0
K53: 0
K54: 0
K55: 0
K56: 0
K57: 0
K58: 0
K59: 0
K60: 0
K61: 0
K62: 0
K63: 0
K64: 0
K65: 0
K66: 0
K67: 0
K68: 0
K69: 0
K70: 0
K71: 0
K72: 0
K73: 0
K74: 0
K75: 0
K76: 0
K78: 0
K79: 0
K80: 0
K81: 0
K82: 0
K83: 0

Sheet Output
K1: COMPANY VALUATION REPORT
B4: =ClientsName -> Sample Company Limited
B6: DRAFT VALUATION
B8: ="as at " &TEXT(Data!G14,"dd mmmm yyy") -> as at 31 December 2022
B10: 1. | C10: REVIEW NOTES
B12: 1.1 | C12: SHAREHOLDING
C14: The issued capital comprises | F14: =I22 -> 40000 | G14: £1 ordinary shares
C16: Ordinary 1p voting shares
D17: Shareholder 1 | I17: 1000 | J17: =I17/I$22 -> 0.025
D18: Shareholder 2 | I18: 15000 | J18: =I18/I$22 -> 0.375
D19: Shareholder 3 | I19: 18000 | J19: =I19/I$22 -> 0.45
D20: Shareholder 4 | I20: 2000 | J20: =I20/I$22 -> 0.05
D21: Shareholder 5 | I21: 4000 | J21: =I21/I22 -> 0.1
D22: Total shareholding | I22: =SUM(I17:I21) -> 40000 | J22: =SUM(J17:J21) -> 1
B24: 1.2 | C24: AUDITED ACCOUNTS
C26: =("Last available accounts are made up to "&TEXT(Data!G14,"dd mmmm yyy")) -> Last available accounts are made up to 31 December 2022
B28: 1.3 | C28: FIXED ASSETS
C30: It has been assumed, for the purposes of this valuation that the written down value of the Fixed Assets equates to their open market value.
B32: 1.4 | C32: GOODWILL
C34: The goodwill of the company has been related to the weighted average profit for valuation purposes.
B36: 1.5 | C36: DEFERRED TAXATION
C38: ="No deferred taxation provision has been provided in the Balance Sheet of the company. At "&TEXT(Data!G14,"dd mmmm yyy")&" the amount for which no provision has been made in respect of deferred tax amounted to £ "&(Data!G16)&"." -> No deferred taxation provision has been provided in the Balance Sheet of the company. At 31 December 2022 the amount for which no provision has been made in respect of deferred tax amounted to £ 33187.
B40: 2. | C40: VALUATION OF COMPANY
B42: 2.1 | C42: TRADING RESULTS SUMMARY
H45: Net Asset Value Excluding Goodwill | I45: Trading Profit Post Tax | J45: Weighting | K45: Adjusted Profit
C48: =("Y/E "&TEXT(Data!G14-731,"dd mmmm yyy")) -> Y/E 30 December 2020 | H48: =Data!G27 -> 83944 | I48: =Data!G23 -> 39894 | J48: 1 | K48: =I48*J48 -> 39894
C49: =("Y/E "&TEXT(Data!G14-366,"dd mmmm yyy")) -> Y/E 30 December 2021 | H49: =Data!G28 -> 121209 | I49: =Data!G24 -> 57265 | J49: 2 | K49: =I49*J49 -> 114530
C50: =("Y/E "&TEXT(Data!G14,"dd mmmm yyy")) -> Y/E 31 December 2022 | H50: =Data!G29 -> 158447 | I50: =Data!G25 -> 73004 | J50: 3 | K50: =I50*J50 -> 219012
J51: =SUM(J48:J50) -> 6 | K51: =SUM(K48:K50) -> 373436
I52: Weighted average three year profit | K52: =K51/J51 -> 62239.33333 | L52: =K52/K58 -> 0.2829060606 | M52: Percentage return on share valuation
B53: 2.2 | C53: VALUE OF COMPANY
C54: Goodwill - based on weighted average pre-tax profit times | J54: 1 | K54: =ROUND((I50*3+I49*2+I48)/6*J54,-3) -> 62000
C56: Net Asset value excluding goodwill | K56: =ROUND(H50,-3) -> 158000
C58: Adjusted Share Value | K58: =SUM(K54:K57) -> 220000
B60: 3. | C60: VALUATION OF SHAREHOLDING
C62: =C16 -> Ordinary 1p voting shares | J62: Price per Share
C63: =D22 -> Total shareholding | E63: =I22 -> 40000 | F63: shares | G63: =S63/100 -> 0.1 | H63: discount - see note 4 | J63: =K58/I22*(1-G63) -> 4.95 | K63: =ROUND(E63*J63,-3) -> 198000 | S63: 10
B66: 4. | C66: DISCOUNT
C68: =IF(G63=0,0,G63*100)&"% discount on the share valuation has been included to take account of the unquoted status of the company, the lack of marketability" -> 10% discount on the share valuation has been included to take account of the unquoted status of the company, the lack of marketability
C69: of the shares, and the percentage of the total shareholding.
B71: 5 | C71: CURRENT DIVIDEND POLICY
C73: ="The current dividend policy is to distribute a minimum of "&Data!G20*100&"% of the post tax profits, subject to cash flow and working capital requirements." -> The current dividend policy is to distribute a minimum of 30% of the post tax profits, subject to cash flow and working capital requirements.
